bitfinex-derivatives/quotes_SOLF0:USTF0_20260203
["timestamp","ask_amount","ask_price","bid_price","bid_amount"]
[1770107523615,2.92894826,104.57,104.5,6.82305774]
[1770107524210,2.92894826,104.56,104.5,3.89410948]
[1770107524411,2.92894826,104.56,104.5,12.51320948]
[1770107524813,2.92894826,104.57,104.5,12.51320948]
[1770107525017,2.92894826,104.56,104.5,12.51320948]
[1770107525518,2.92894826,104.54,104.48,12.47777838]
[1770107526012,2.95467399,104.54,104.48,12.47777838]
[1770107529619,2.95467399,104.54,104.49,8.6204]
[1770107529824,2.92894826,104.54,104.49,12.36264379]
[1770107530423,390.10184895,104.56,104.49,12.36264379]
[1770107531226,381.44,104.56,104.51,3.74537499]
[1770107531521,390.19428654,104.58,104.51,3.74537499]
[1770107531730,0.04038654,104.58,104.52,3.74537499]
[1770107532724,0.05630901,104.6,104.53,3.73741375]
[1770107534220,0.05630901,104.6,104.54,3.73840113]
[1770107534530,381.61433427,104.62,104.55,3.73840113]
[1770107535420,381.61433427,104.62,104.55,12.35350113]
[1770107535830,381.61433427,104.62,104.56,8.6144]
[1770107537232,381.61433427,104.62,104.57,8.6138]
[1770107537930,0.05433427,104.62,104.58,8.6131]
[1770107538330,0.05433427,104.62,104.55,137.6928468]
[1770107539032,0.05433427,104.62,104.57,8.6139]
[1770107540535,0.05433427,104.62,104.56,3.70283474]
[1770107541232,0.05433427,104.62,104.55,137.72053474]
[1770107541434,0.05433427,104.62,104.56,8.6146]
[1770107541637,0.05433427,104.62,104.55,3.70283474]
[1770107541836,381.55433427,104.62,104.55,3.70283474]
[1770107542137,0.18918416,104.61,104.55,12.31823474]
[1770107542336,381.5,104.62,104.56,3.70283474]
[1770107542836,381.5,104.62,104.57,8.6138]
[1770107544440,381.59001431,104.62,104.57,8.6138]
[1770107545841,381.59001431,104.62,104.57,12.33777489]
[1770107548344,0.09001431,104.62,104.58,8.613]
[1770107550446,3.01591103,104.62,104.58,8.613]
[1770107553144,381.44,104.63,104.58,12.31583474]
[1770107553350,2.92589672,104.63,104.58,12.31583474]
[1770107554151,3.20057034,104.63,104.58,12.31583474]
[1770107555452,2.92589672,104.62,104.58,12.31583474]
[1770107556449,2.92589672,104.61,104.58,3.70283474]
[1770107556948,2.92589672,104.61,104.58,12.31583474]
[1770107557152,2.92589672,104.61,104.58,8.613]
[1770107557354,2.92589672,104.63,104.58,3.70283474]
[1770107557649,2.92589672,104.63,104.59,8.6121]
[1770107557851,2.92589672,104.62,104.59,8.6121]
[1770107562459,2.92589672,104.62,104.58,12.31573474]
[1770107562757,0.23480082,104.63,104.58,3.70283474]
[1770107562961,2.92589672,104.62,104.58,3.70283474]
[1770107563160,384.58069754,104.63,104.59,8.6122]
[1770107563759,3.16069754,104.63,104.59,8.6122]
[1770107563956,2.92589672,104.62,104.59,8.6122]
[1770107565863,2.92589672,104.62,104.58,12.31573474]
[1770107566161,2.92589672,104.61,104.58,12.31573474]
[1770107566562,2.92589672,104.62,104.58,12.31573474]
[1770107566964,2.92589672,104.62,104.59,8.6122]
[1770107567257,2.92589672,104.64,104.59,3.70283474]
[1770107567462,2.92589672,104.63,104.59,3.70283474]
[1770107567662,2.92589672,104.64,104.59,3.70283474]
[1770107569465,2.92589672,104.64,104.6,8.6114]
[1770107570961,2.92589672,104.63,104.59,12.31503474]
[1770107572568,384.60072053,104.64,104.6,8.6113]
[1770107573267,3.22072053,104.64,104.6,8.6113]
[1770107573468,384.60072053,104.64,104.6,8.6113]
[1770107576171,3.22072053,104.64,104.6,8.6113]
[1770107576365,384.60072053,104.64,104.6,8.6113]
[1770107576968,2.92589672,104.63,104.6,8.6113]
[1770107578566,2.92589672,104.62,104.58,8.6125]
[1770107578766,2.92589672,104.62,104.58,3.64241821]
[1770107579469,2.92589672,104.62,104.59,8.6117]
[1770107579963,381.61590679,104.63,104.59,8.6117]
[1770107579964,384.54180351,104.63,104.59,8.6117]
[1770107581275,2.92589672,104.62,104.59,8.6117]
[1770107581973,384.54180351,104.63,104.59,8.6117]
[1770107582168,393.15100351,104.63,104.58,3.64241821]
[1770107582375,2.92589672,104.62,104.58,3.64241821]
[1770107582966,2.92589672,104.62,104.58,12.25541821]
[1770107583874,2.92589672,104.63,104.59,12.28276736]
[1770107586370,381.57960848,104.64,104.59,3.67056736]
[1770107586576,384.30589672,104.64,104.6,12.28322824]
[1770107587377,2.92589672,104.63,104.6,12.28322824]
[1770107588278,384.30589672,104.64,104.6,12.28322824]
[1770107589376,2.92589672,104.62,104.59,8.6121]
[1770107589676,2.92589672,104.62,104.59,12.28664681]
[1770107590076,2.92589672,104.63,104.59,12.28664681]
[1770107590279,381.38,104.64,104.6,3.68958739]
[1770107590578,384.30589672,104.64,104.6,3.68958739]
[1770107591280,2.92589672,104.64,104.61,8.6105]
[1770107592381,2.924894,104.64,104.61,8.6105]
[1770107593483,2.924894,104.62,104.57,23.68916296]
[1770107593782,2.924894,104.6,104.56,6.50533287]
[1770107595381,2.924894,104.6,104.56,15.11993287]
[1770107598586,2.924894,104.6,104.57,6.50509136]
[1770107599286,2.924894,104.61,104.57,6.50509136]
[1770107601190,2.924894,104.6,104.57,6.50509136]
[1770107603383,335.29,104.62,104.57,6.50509136]
[1770107603590,2.924894,104.6,104.57,6.50509136]
[1770107605992,2.924894,104.6,104.57,15.11899136]
[1770107606189,2.924894,104.62,104.58,6.47447687]
[1770107606388,2.924894,104.61,104.58,6.47447687]
[1770107606591,2.924894,104.61,104.58,15.08737687]
[1770107606891,2.924894,104.61,104.58,6.47447687]
[1770107607790,237.52,104.63,104.58,6.47447687]
[1770107607995,240.444894,104.63,104.58,6.47447687]
[1770107609299,2.924894,104.63,104.59,8.6122]
[1770107609796,2.924894,104.63,104.58,6.47447687]
[1770107610095,2.924894,104.62,104.58,6.47447687]
[1770107611396,2.924894,104.62,104.58,15.08747687]
[1770107613694,2.924894,104.61,104.57,8.6139]
[1770107614092,2.924894,104.61,104.56,6.50619864]
[1770107615395,2.924894,104.61,104.57,8.6138]
[1770107615600,2.924894,104.61,104.57,15.1093949]
[1770107622406,2.924894,104.61,104.57,6.4955949]
[1770107623105,2.924894,104.6,104.57,6.4955949]
[1770107623806,11.535794,104.61,104.57,6.4955949]
[1770107624205,2.924894,104.61,104.57,6.4955949]
[1770107625609,2.924894,104.61,104.56,6.50180751]
[1770107626110,11.535694,104.61,104.56,6.50180751]
[1770107627308,11.535694,104.61,104.56,15.11640751]
[1770107627804,8.6108,104.61,104.57,6.51167621]
[1770107628006,2.924894,104.63,104.56,6.5114434]
[1770107628312,2.924894,104.61,104.56,6.5114434]
[1770107629310,2.924894,104.61,104.57,15.1252434]
[1770107631011,2.924894,104.61,104.58,6.52309857]
[1770107631208,2.924894,104.62,104.59,6.52309857]
[1770107631810,2.924894,104.63,104.59,6.52309857]
[1770107632114,2.924894,104.62,104.59,6.52309857]
[1770107632514,384.364894,104.64,104.6,6.52653017]
[1770107633207,2.924894,104.64,104.6,6.52653017]
[1770107635411,2.924894,104.63,104.58,15.15121497]
[1770107635714,2.924894,104.63,104.59,6.53821497]
[1770107637817,2.924894,104.62,104.59,6.53821497]
[1770107640815,2.924894,104.62,104.57,6.39938127]
[1770107641020,2.924894,104.6,104.57,6.39938127]
[1770107641220,2.924894,104.61,104.57,6.39938127]
[1770107641722,2.924894,104.6,104.57,6.39938127]
[1770107642021,2.924894,104.61,104.57,6.39938127]
[1770107642320,2.924894,104.61,104.58,6.34084077]
[1770107642918,381.4,104.64,104.58,6.34084077]
[1770107643117,2.924894,104.63,104.58,6.34084077]
[1770107644022,2.924894,104.64,104.6,6.34897232]
[1770107644520,381.4,104.66,104.61,6.34897232]
[1770107644720,2.924894,104.65,104.61,6.34897232]
[1770107645317,11.532294,104.65,104.61,6.34897232]
[1770107645815,2.924894,104.65,104.61,6.34897232]
[1770107646620,381.4,104.67,104.58,2.924894]
[1770107646621,2.924894,104.63,104.59,6.34897232]
[1770107649623,2.924894,104.62,104.57,6.08921328]
[1770107650324,8.6092,104.63,104.58,6.08921328]
[1770107650325,2.924894,104.63,104.58,6.08921328]
[1770107650725,390.008,104.65,104.58,6.08921328]
[1770107650726,384.324894,104.65,104.58,6.08921328]
[1770107651025,2.924894,104.65,104.61,6.08921328]
[1770107651225,11.531494,104.66,104.61,6.08921328]
[1770107651622,2.924894,104.65,104.61,6.08921328]
[1770107654427,2.92439467,104.65,104.61,6.08921328]
[1770107655123,2.92439467,104.64,104.61,6.08921328]
[1770107656822,2.92439467,104.64,104.59,8.6122]
[1770107656823,2.92439467,104.63,104.59,6.11835797]
[1770107657026,2.92439467,104.62,104.57,14.73165797]
[1770107657224,2.92439467,104.62,104.58,6.11560666]
[1770107658325,2.92439467,104.61,104.58,6.11560666]
[1770107659530,2.92439467,104.62,104.58,6.11560666]
[1770107660223,344.39269467,104.64,104.59,6.13115673]
[1770107660431,2.92439467,104.64,104.59,6.13115673]
[1770107660929,2.92439467,104.64,104.59,14.74325673]
[1770107661129,2.92439467,104.65,104.6,6.13115673]
[1770107662125,11.53189467,104.65,104.6,6.13115673]
[1770107663029,2.92439467,104.64,104.6,6.13115673]
[1770107665035,2.92439467,104.63,104.59,6.22085688]
[1770107665830,2.92439467,104.63,104.59,14.83315688]
[1770107666032,2.92439467,104.63,104.6,6.22475651]
[1770107666330,2.92439467,104.64,104.6,6.22475651]
[1770107669734,2.92439467,104.64,104.6,14.83605651]
[1770107669935,11.53189467,104.65,104.61,6.21879626]
[1770107671436,2.92439467,104.64,104.61,6.21879626]
[1770107672935,384.28439467,104.66,104.61,14.82919626]
[1770107673237,2.92439467,104.65,104.61,6.21879626]
[1770107673434,2.92439467,104.64,104.61,6.21879626]
[1770107676538,8.6074,104.65,104.61,6.21879626]
[1770107676738,2.92439467,104.65,104.61,6.21879626]
[1770107677143,2.92439467,104.64,104.61,6.21879626]
[1770107682243,11.53259467,104.64,104.58,8.6124]
[1770107682443,11.53259467,104.64,104.59,6.25015531]
[1770107682845,2.92439467,104.63,104.59,6.25015531]
[1770107683549,11.53279467,104.64,104.59,6.25015531]
[1770107685051,8.6084,104.64,104.59,6.25015531]
[1770107685251,2.92439467,104.63,104.59,6.25015531]
[1770107686652,2.92439467,104.62,104.59,6.25015531]
[1770107686851,2.92439467,104.63,104.59,6.25015531]
[1770107688753,11.53279467,104.64,104.59,6.25015531]
[1770107689653,2.92439467,104.63,104.59,6.25015531]
[1770107693163,2.92439467,104.64,104.6,6.16408102]
[1770107696667,384.26439467,104.65,104.61,6.16336429]
[1770107697063,2.92439467,104.64,104.61,6.16336429]
[1770107699166,384.26439467,104.65,104.61,6.16336429]
[1770107699969,11.53099467,104.66,104.62,6.18122982]
[1770107700363,384.26439467,104.67,104.63,6.18122982]
[1770107700764,392.87009467,104.67,104.63,6.18122982]
[1770107700965,2.92439467,104.66,104.63,6.18122982]
[1770107701667,2.92439467,104.65,104.61,14.79488902]
[1770107701871,2.92439467,104.65,104.62,6.18438902]
[1770107702064,2.92439467,104.66,104.62,6.18438902]
[1770107702467,11.53099467,104.66,104.62,6.18438902]
[1770107703565,381.34,104.67,104.63,6.19094131]
[1770107703768,384.26439467,104.67,104.63,6.19094131]
[1770107707872,133.8299,104.7,104.64,6.16252914]
[1770107707873,2.92439467,104.69,104.64,6.16252914]
[1770107708266,11.52839467,104.7,104.64,6.16252914]
[1770107708867,389.9026,104.71,104.66,6.16252914]
[1770107709069,2.92439467,104.7,104.66,6.16252914]
[1770107710371,11.52599467,104.72,104.67,6.16680259]
[1770107710970,2.92439467,104.71,104.67,6.16680259]
[1770107711371,2.92439467,104.72,104.68,6.12744215]
[1770107711771,2.92439467,104.72,104.66,6.12744215]
[1770107711970,2.92439467,104.71,104.66,6.12744215]
[1770107713275,2.92439467,104.71,104.66,14.73394215]
[1770107713470,2.92439467,104.71,104.67,6.13388234]
[1770107714775,2.92439467,104.72,104.68,6.13388234]
[1770107714971,2.92439467,104.73,104.68,6.13388234]
[1770107715971,2.92439467,104.73,104.69,6.13532761]
[1770107716474,2.91956993,104.73,104.69,6.13532761]
[1770107716667,2.91956993,104.73,104.69,14.73922761]
[1770107716872,2.91956993,104.73,104.69,6.13532761]
[1770107717770,2.91956993,104.74,104.69,6.13532761]
[1770107719269,2.91956993,104.74,104.69,14.73912761]
[1770107719473,2.91956993,104.74,104.7,4.67022315]
[1770107719875,2.91956993,104.75,104.7,4.67022315]
[1770107720175,2.91956993,104.74,104.7,4.67022315]
[1770107721677,8.5992,104.75,104.7,4.67022315]
[1770107721678,2.91956993,104.73,104.7,4.67022315]
[1770107722577,2.91956993,104.74,104.7,4.67022315]
[1770107727179,8.5992,104.75,104.7,4.67022315]
[1770107727383,2.91956993,104.74,104.7,4.67022315]
[1770107730177,11.51966993,104.74,104.7,4.67022315]
[1770107730375,11.51966993,104.74,104.68,8.6047]
[1770107730376,2.91956993,104.71,104.68,4.81828231]
[1770107732383,2.91956993,104.72,104.68,4.81828231]
[1770107733486,2.91956993,104.71,104.68,4.81828231]
[1770107733786,2.91956993,104.71,104.67,4.83374645]
[1770107734787,2.91956993,104.73,104.68,4.83374645]
[1770107735081,2.91956993,104.76,104.71,13.4407199]
[1770107735481,2.91956993,104.75,104.71,13.4407199]
[1770107735786,2.91956993,104.77,104.73,4.8384199]
[1770107735982,2.91956993,104.78,104.73,4.8384199]
[1770107736687,2.91956993,104.78,104.74,4.8384199]
[1770107737085,2.91956993,104.77,104.74,4.8384199]
[1770107737487,2.91956993,104.77,104.72,4.88190921]
[1770107738487,2.91956993,104.77,104.72,13.48270921]
[1770107738682,2.91956993,104.76,104.7,4.88190921]
[1770107739081,2.91956993,104.75,104.71,4.88190921]
[1770107739887,2.91956993,104.76,104.71,4.88190921]
[1770107740386,2.91956993,104.76,104.71,13.48410921]
[1770107742186,2.91956993,104.75,104.71,4.88190921]
[1770107742387,2.91956993,104.74,104.69,4.87118396]
[1770107743092,2.91956993,104.75,104.7,4.87118396]
[1770107743894,2.91956993,104.76,104.71,4.8330726]
[1770107744094,2.91956993,104.75,104.71,4.8330726]
[1770107746595,2.91956993,104.73,104.69,13.44019104]
[1770107747294,2.91956993,104.73,104.69,4.83629104]
[1770107747793,2.91956993,104.74,104.69,13.44019104]
[1770107747991,2.91956993,104.75,104.7,4.83467595]
[1770107748390,2.91956993,104.75,104.71,4.83467595]
[1770107748895,11.51796993,104.76,104.71,4.83467595]
[1770107749400,8.5984,104.76,104.71,4.83467595]
[1770107749592,11.51796993,104.76,104.71,4.83467595]
[1770107751498,2.91956993,104.76,104.71,13.43697595]
[1770107752096,8.5976,104.77,104.72,13.45281676]
[1770107752097,2.91956993,104.77,104.72,13.45281676]
[1770107753097,2.91956993,104.77,104.73,4.85121676]
[1770107753798,11.51626993,104.78,104.73,4.85121676]
[1770107754300,2.91956993,104.77,104.73,4.85121676]
[1770107754597,2.91956993,104.76,104.72,4.88680949]
[1770107754798,11.51706993,104.77,104.72,4.88680949]
[1770107755597,2.91956993,104.74,104.7,4.91041152]
[1770107756198,2.91956993,104.75,104.7,13.51351152]
[1770107756402,11.51876993,104.75,104.7,4.91041152]
[1770107756698,433.7446,104.79,104.7,4.91041152]
[1770107756903,462.4546,104.79,104.7,4.91041152]
[1770107757104,465.37416993,104.79,104.72,2.91956993]
[1770107757404,436.66416993,104.79,104.72,2.91956993]
[1770107757603,8.5976,104.77,104.72,7.79855192]
[1770107758000,8.5968,104.78,104.73,2.91956993]
[1770107758302,8.5968,104.78,104.73,7.79855192]
[1770107759601,195.6727,104.83,104.74,7.7184322]
[1770107759806,2.91956993,104.81,104.74,7.7184322]
[1770107760105,2.91956993,104.81,104.74,4.79886227]
[1770107760407,8.5952,104.8,104.74,7.7184322]
[1770107761007,8.5959,104.79,104.74,7.7184322]
[1770107761903,543.3075,104.82,104.76,7.71789388]
[1770107761904,380.92,104.82,104.76,7.71789388]
[1770107762110,383.83956993,104.82,104.76,7.71789388]
[1770107762409,2.91956993,104.81,104.74,7.71789388]
[1770107762610,2.91956993,104.81,104.75,4.79832395]
[1770107762805,8.5949,104.81,104.76,4.79832395]
[1770107764410,8.5949,104.81,104.76,7.71789388]
[1770107764716,389.5136,104.82,104.76,7.71789388]
[1770107765314,389.5136,104.82,104.76,16.31599388]
[1770107766712,8.5927,104.83,104.78,7.7478087]
[1770107766914,133.6064,104.88,104.8,4.82823877]
[1770107767217,133.6064,104.88,104.8,2.91956993]
[1770107767218,136.53226993,104.87,104.8,2.91956993]
[1770107767517,8.591,104.85,104.8,7.73891393]
[1770107767918,8.591,104.85,104.8,4.819344]
[1770107768118,8.5918,104.84,104.78,13.415944]
[1770107768412,8.5918,104.84,104.79,2.91956993]
[1770107768913,8.5918,104.84,104.78,16.33551393]
[1770107769213,2.91956993,104.82,104.75,2.91956993]
[1770107769415,2.91956993,104.82,104.76,7.75255242]
[1770107769613,383.75956993,104.83,104.76,7.75255242]
[1770107770018,8.5943,104.81,104.76,7.75255242]
[1770107770219,11.51386993,104.81,104.74,7.75255242]
[1770107770511,383.71956993,104.82,104.76,2.91956993]
[1770107770918,380.8,104.82,104.76,2.91956993]
[1770107771319,389.3939,104.82,104.76,2.91956993]
[1770107771721,389.3939,104.82,104.77,2.91956993]
[1770107772320,165.28046993,104.84,104.76,4.76723501]
[1770107772321,517.35786993,104.85,104.78,2.91956993]
[1770107773022,8.5935,104.82,104.76,7.68680494]
[1770107773423,2.91956993,104.83,104.76,7.68680494]
[1770107774323,8.5951,104.8,104.74,2.91956993]
[1770107774519,8.5951,104.8,104.74,7.64974829]
[1770107774719,343.88,104.81,104.75,7.64974829]
[1770107775023,343.88,104.81,104.76,2.91956993]
[1770107775624,352.4743,104.81,104.75,7.64974829]
[1770107776220,2.91956993,104.81,104.74,11.51946993]
[1770107776423,389.3752,104.8,104.74,2.91616872]
[1770107776719,133.7021,104.8,104.71,7.70880498]
[1770107776925,2.91616872,104.79,104.72,7.70880498]
[1770107778318,11.51206872,104.79,104.72,16.31030498]
[1770107779324,11.51206872,104.79,104.73,4.81708559]
[1770107779620,8.5959,104.79,104.73,7.73325431]
[1770107780223,8.5959,104.79,104.74,7.76477574]
[1770107780423,8.595,104.8,104.74,7.76477574]
[1770107780824,380.8,104.81,104.76,4.84860702]
[1770107782419,2.91616872,104.8,104.73,7.76477574]
[1770107782625,2.91616872,104.8,104.74,4.84860702]
[1770107782827,2.91616872,104.81,104.74,4.84860702]
[1770107783020,2.91616872,104.82,104.75,4.84860702]
[1770107783325,2.91616872,104.82,104.75,7.76477574]
[1770107783932,2.91616872,104.81,104.75,4.84860702]
[1770107784127,11.51106872,104.81,104.75,4.84860702]
[1770107784821,11.51126872,104.8,104.74,8.5997]
[1770107785027,11.51126872,104.8,104.74,4.85462691]
[1770107785328,2.91616872,104.79,104.74,4.85462691]
[1770107787528,11.51226872,104.79,104.74,4.85462691]
[1770107787827,8.5961,104.79,104.74,4.85462691]
[1770107788024,11.51226872,104.79,104.74,4.85462691]
[1770107788324,2.91616872,104.78,104.73,13.44772493]
[1770107788529,11.51226872,104.79,104.73,13.44772493]
[1770107789032,8.5961,104.79,104.74,4.84712493]
[1770107789428,392.31136872,104.8,104.74,13.44692493]
[1770107789727,11.51136872,104.8,104.74,13.44692493]
[1770107791128,8.5952,104.8,104.75,4.79491505]
[1770107791432,2.91616872,104.85,104.78,7.71108377]
[1770107791624,2.91616872,104.85,104.79,4.79491505]
[1770107791826,11.50776872,104.85,104.79,4.79491505]
[1770107792027,8.5916,104.85,104.79,4.79491505]
[1770107792227,8.5916,104.85,104.79,7.71108377]
[1770107792927,8.5919,104.84,104.78,7.71108377]
[1770107793633,8.5927,104.83,104.78,4.79491505]
[1770107794336,2.91616872,104.84,104.78,4.79491505]
[1770107794827,8.5926,104.83,104.78,4.79491505]
[1770107797239,11.50876872,104.83,104.76,16.24927748]
[1770107798137,11.50986872,104.82,104.76,13.33310876]
[1770107799233,11.51036872,104.81,104.74,16.22938234]
[1770107799539,2.91616872,104.81,104.74,4.71411362]
[1770107799935,2.91616872,104.83,104.77,4.71411362]
[1770107801840,383.63616872,104.84,104.77,4.71411362]
[1770107802139,383.63616872,104.84,104.77,7.63028234]
[1770107803437,8.5926,104.83,104.77,16.22768234]
[1770107803841,8.5934,104.82,104.77,7.63028234]
[1770107804237,383.63616872,104.84,104.77,7.63028234]
[1770107804541,2.91616872,104.83,104.77,4.71411362]
[1770107805342,11.50896872,104.83,104.77,13.31161362]
[1770107810441,11.50806872,104.84,104.79,4.80803028]
[1770107810645,380.72,104.83,104.79,4.80803028]
[1770107811540,392.22876872,104.83,104.77,13.40538633]
[1770107813345,392.22876872,104.83,104.78,4.80562945]
[1770107816246,8.5937,104.82,104.78,4.80562945]
[1770107819650,8.5928,104.83,104.78,4.80562945]
[1770107820846,11.50896872,104.83,104.78,4.80562945]
[1770107822951,8.5928,104.83,104.78,4.80562945]
[1770107823850,11.50896872,104.83,104.78,4.80562945]
[1770107824448,8.5928,104.83,104.78,4.80562945]
[1770107825840,2.91616872,104.82,104.76,4.79678776]
[1770107826045,543.0451,104.84,104.76,4.79678776]
[1770107826247,2.91616872,104.83,104.76,7.71295648]
[1770107826448,2.91616872,104.84,104.78,4.79678776]
[1770107826649,383.59616872,104.84,104.78,4.79678776]
[1770107826845,2.91616872,104.83,104.78,4.79678776]
[1770107827048,2.91616872,104.82,104.77,13.39358776]
[1770107828052,2.91616872,104.82,104.78,4.77992666]
[1770107829649,383.59616872,104.84,104.78,13.37652666]
[1770107829855,383.59616872,104.84,104.79,4.81232393]
[1770107830952,380.68,104.84,104.79,13.40802393]
[1770107831158,380.68,104.84,104.8,4.81232393]
[1770107831857,383.59616872,104.84,104.78,13.41889293]
[1770107832058,2.91616872,104.83,104.79,4.82239293]
[1770107833055,2.91616872,104.8,104.74,4.82239293]
[1770107833261,2.91616872,104.79,104.74,4.82239293]
[1770107833760,2.91616872,104.79,104.75,8.599]
[1770107833961,2.91616872,104.79,104.75,13.44213264]
[1770107836366,8.5951,104.8,104.75,13.44213264]
[1770107836367,2.91632228,104.8,104.75,13.44213264]
[1770107836772,2.91632228,104.8,104.76,13.43607136]
[1770107836960,380.68,104.83,104.77,4.83787136]
[1770107837165,2.91632228,104.82,104.77,4.83787136]
[1770107837765,2.91632228,104.82,104.78,12.24623659]
[1770107838472,2.91632228,104.82,104.77,8.5974]
[1770107838771,2.91632228,104.82,104.77,12.24763659]
[1770107839773,2.91632228,104.82,104.78,3.65023659]
[1770107840174,3.67688567,104.82,104.77,8.5974]
[1770107840674,2.91632228,104.8,104.76,12.24853659]
[1770107843778,2.91632228,104.8,104.69,629.811]
[1770107843779,3.62085041,104.78,104.72,27.11202744]
[1770107843981,2.91632228,104.76,104.72,3.42286448]
[1770107845181,2.91632228,104.77,104.73,3.42286448]
[1770107845779,2.91632228,104.76,104.73,3.42286448]
[1770107846982,2.91632228,104.76,104.71,12.02526448]
[1770107848283,2.91632228,104.75,104.71,3.42286448]
[1770107849084,2.91632228,104.74,104.71,3.42286448]
[1770107850480,2.91632228,104.74,104.69,3.42286448]
[1770107851080,2.91632228,104.74,104.7,12.02606448]
[1770107852784,2.91632228,104.74,104.71,3.42286448]
[1770107854383,2.91632228,104.75,104.71,12.02516448]
[1770107855089,2.91632228,104.75,104.71,3.42286448]
[1770107856886,0.75245316,104.78,104.72,3.42286448]
[1770107857081,2.91632228,104.76,104.72,3.42286448]
[1770107858691,2.91632228,104.75,104.72,3.42286448]
[1770107859592,2.91632228,104.76,104.72,3.42286448]
[1770107861992,12.26357884,104.77,104.72,3.42286448]
[1770107862288,2.91632228,104.77,104.73,3.42286448]
[1770107862494,11.51312228,104.78,104.73,3.42286448]
[1770107862694,3.66593035,104.79,104.73,3.42286448]
[1770107863094,2.91632228,104.8,104.74,3.42286448]
[1770107863396,3.66123827,104.8,104.74,3.42286448]
[1770107863893,3.66123827,104.82,104.75,6.33918676]
[1770107864095,3.66123827,104.82,104.76,3.42286448]
[1770107865289,0.72332391,104.78,104.72,27.11202744]
[1770107865496,2.91632228,104.77,104.72,3.42286448]
[1770107865793,2.91632228,104.77,104.73,12.02346448]
[1770107866497,2.91632228,104.76,104.72,8.6015]
[1770107868000,2.91632228,104.76,104.72,12.02436448]
[1770107870505,2.91632228,104.74,104.7,3.54001246]
[1770107871003,2.91632228,104.75,104.7,12.14261246]
[1770107871203,2.91632228,104.75,104.71,3.54286427]
[1770107871404,3.37635815,104.76,104.71,3.54286427]
[1770107871799,2.91632228,104.74,104.71,3.54286427]
[1770107872606,2.91632228,104.75,104.71,3.54286427]
[1770107873504,11.51552228,104.75,104.71,3.54286427]
[1770107873809,2.91632228,104.78,104.71,3.54286427]
[1770107874103,11.51312228,104.78,104.73,3.57661832]
[1770107874607,11.89866976,104.79,104.74,3.57661832]
[1770107875004,3.30276976,104.81,104.74,3.57661832]
[1770107875308,2.91632228,104.82,104.76,3.58276626]
[1770107875606,3.2904739,104.82,104.76,3.58276626]
[1770107875998,0.37415162,104.82,104.76,3.58276626]
[1770107876200,3.2904739,104.82,104.76,3.58276626]
[1770107876406,11.8839739,104.82,104.76,12.18036626]
[1770107878207,392.67076997,104.84,104.77,12.20616822]
[1770107878408,392.67076997,104.84,104.78,3.60876822]
[1770107878706,2.91632228,104.83,104.78,3.60876822]
[1770107878903,11.83126997,104.83,104.78,3.60876822]
[1770107880407,11.87087229,104.82,104.76,12.18751706]
[1770107881104,11.87087229,104.82,104.77,3.58931706]
[1770107881501,2.91632228,104.81,104.77,3.58931706]
[1770107882509,2.91632228,104.8,104.75,12.17153749]
[1770107882709,2.91632228,104.79,104.75,12.17153749]
[1770107883011,2.91632228,104.8,104.75,12.17153749]
[1770107883410,2.91632228,104.78,104.73,3.52593205]
[1770107884822,3.43202442,104.79,104.73,3.52593205]
[1770107885317,3.43202442,104.79,104.74,12.12583205]
[1770107886323,12.02792442,104.79,104.74,3.52593205]
[1770107886816,2.91632228,104.76,104.72,3.52593205]
[1770107887419,2.91632228,104.78,104.72,3.52593205]
[1770107888118,2.91632228,104.78,104.73,12.12653205]
[1770107889422,9.17436413,104.79,104.74,3.52593205]
[1770107889423,11.51212228,104.79,104.74,3.52593205]
[1770107889619,11.51212228,104.79,104.74,12.12583205]
[1770107889620,2.91632228,104.79,104.74,12.12583205]
[1770107891621,3.4440262,104.8,104.75,3.52593205]
[1770107891822,3.4440262,104.8,104.75,12.12473205]
[1770107892024,2.91632228,104.81,104.76,3.52593205]
[1770107892218,0.501051,104.81,104.76,3.52593205]
[1770107892419,2.91632228,104.8,104.76,3.52593205]
[1770107895823,8.5943,104.81,104.75,3.52593205]
[1770107896022,2.91632228,104.8,104.75,3.52593205]
[1770107896523,2.91632228,104.8,104.76,3.52593205]
[1770107896722,3.44429317,104.81,104.76,3.52593205]
[1770107897124,2.91632228,104.8,104.76,3.52593205]
[1770107898528,3.45854747,104.8,104.75,8.599]
[1770107898824,3.45854747,104.8,104.75,12.12493205]
[1770107901821,9.20274206,104.81,104.76,3.71774581]
[1770107902026,2.91631635,104.8,104.76,3.71774581]
[1770107902227,9.20274206,104.81,104.76,12.31584581]
[1770107902228,3.52475841,104.81,104.76,12.31584581]
[1770107902919,389.3736,104.82,104.77,12.31484581]
[1770107902920,2.91631635,104.82,104.77,12.31484581]
[1770107903322,2.91631635,104.82,104.77,3.71774581]
[1770107904930,2.91631635,104.8,104.77,3.71774581]
[1770107905430,0.60439389,104.82,104.78,3.71774581]